bitfinex/quotes_ETHUSD_20250930
["timestamp","ask_amount","ask_price","bid_price","bid_amount"]
[1759254103259,0.2321,4110.8,4110.7,3.631]
[1759254103469,0.2321,4110.8,4110.2,9.92666954]
[1759254103650,0.41182144,4111.1,4110.3,2.839]
[1759254103962,0.41182144,4111.1,4110.4,0.792]
[1759254104158,3.07269817,4111.0,4110.4,0.792]
[1759254104461,2.43261762,4110.8,4110.4,0.792]
[1759254104660,2.43261762,4110.8,4110.5,2.839]
[1759254104834,0.6402,4110.7,4110.5,2.839]
[1759254105242,0.6402,4110.6,4110.5,3.631]
[1759254105756,0.2321,4110.6,4110.5,3.631]
[1759254105957,0.6402,4110.6,4110.5,3.631]
[1759254106565,0.6402,4110.6,4110.5,3.7526]
[1759254107143,0.2321,4110.6,4110.5,3.7526]
[1759254107468,0.41182144,4111.1,4110.5,3.7526]
[1759254107469,0.2321,4110.8,4110.5,3.7526]
[1759254107638,0.2321,4110.7,4110.5,3.7526]
[1759254107966,0.2321,4110.6,4110.5,3.7526]
[1759254108147,0.2321,4110.6,4110.5,6.18539406]
[1759254109161,0.41182144,4111.1,4110.5,6.18539406]
[1759254109162,0.2321,4110.9,4110.6,2.43270649]
[1759254109351,0.2321,4110.9,4110.7,2.838]
[1759254109672,0.41182144,4111.1,4110.8,0.81632616]
[1759254109876,0.41182144,4111.1,4110.8,0.792]
[1759254109877,0.2321,4111.0,4110.8,0.792]
[1759254110189,3.07275734,4110.9,4110.8,2.838]
[1759254110385,5.47275734,4110.9,4110.8,2.838]
[1759254110874,2.43304248,4110.1,4109.2,0.792]
[1759254111080,2.4328662,4110.4,4109.5,0.792]
[1759254111258,0.6402,4110.3,4109.7,0.792]
[1759254111577,0.2321,4110.2,4109.8,5.2701684]
[1759254111777,0.2321,4110.2,4109.9,2.43313479]
[1759254111964,0.4081,4110.7,4110.0,2.837]
[1759254112164,2.43293488,4110.3,4110.0,2.837]
[1759254112485,0.2321,4110.2,4110.0,2.837]
[1759254112662,0.4081,4110.5,4110.0,2.837]
[1759254112862,0.2321,4110.1,4110.0,2.837]
[1759254114593,3.07323082,4110.1,4110.0,2.837]
[1759254116257,2.43291717,4110.3,4110.0,2.837]
[1759254116258,0.2321,4110.3,4110.0,2.837]
[1759254116558,0.2321,4110.2,4110.0,2.837]
[1759254116785,0.2321,4110.1,4110.0,2.837]
[1759254117052,3.07323082,4110.1,4110.0,2.837]
[1759254117466,3.07323082,4110.1,4108.6,0.4702]
[1759254117467,2.43341751,4109.5,4108.6,0.4702]
[1759254117660,0.2321,4109.4,4108.7,2.837]
[1759254117891,0.2321,4109.3,4108.7,2.837]
[1759254118081,0.2321,4109.3,4108.8,0.792]
[1759254118285,2.43277675,4110.6,4108.7,2.837]
[1759254118286,0.6402,4109.2,4108.7,2.837]
[1759254118462,0.6402,4109.2,4108.8,0.024338]
[1759254118463,0.2321,4109.1,4108.8,0.024338]
[1759254118666,0.2321,4109.1,4108.7,2.837]
[1759254118880,2.43328083,4109.7,4108.8,0.494538]
[1759254119076,2.43333553,4109.6,4108.9,3.22572631]
[1759254119289,0.2321,4109.7,4109.0,2.86133682]
[1759254119591,0.2321,4109.7,4109.4,0.1216]
[1759254119810,0.2321,4109.7,4109.5,2.86133386]
[1759254120102,2.433401,4111.2,4109.6,0.5918]
[1759254120266,2.4326959,4110.7,4110.2,0.1216]
[1759254120467,0.2321,4110.7,4110.5,0.1216]
[1759254120764,0.2321,4110.7,4110.6,2.86132734]
[1759254120986,0.2321,4110.7,4110.6,2.837]
[1759254121299,0.2321,4110.7,4110.5,0.1216]
[1759254121300,2.43273488,4110.6,4110.5,0.1216]
[1759254121495,2.43273488,4110.6,4109.9,0.1216]
[1759254121496,2.4,4110.5,4109.9,0.1216]
[1759254121796,2.4,4110.5,4108.5,0.48394771]
[1759254121797,2.43314922,4109.9,4109.8,0.491]
[1759254122097,2.43320842,4109.8,4109.7,0.491]
[1759254122412,0.6402,4109.8,4109.7,0.491]
[1759254122569,3.19500842,4109.8,4109.7,0.491]
[1759254122878,3.19500842,4109.8,4109.3,0.1216]
[1759254122879,0.3537,4109.8,4109.6,2.837]
[1759254123078,2.66536763,4109.7,4109.6,2.837]
[1759254124303,0.2321,4109.7,4109.6,2.837]
[1759254124506,2.43325718,4109.8,4109.6,2.837]
[1759254124714,2.43326763,4109.7,4109.6,2.837]
[1759254124994,0.2321,4109.9,4109.6,2.837]
[1759254125369,2.43325045,4109.8,4109.6,2.837]
[1759254125710,2.43326763,4109.7,4109.6,2.837]
[1759254125912,2.43321175,4109.8,4109.6,2.837]
[1759254126269,2.66536763,4109.7,4109.6,3.737]
[1759254126771,3.07346763,4109.7,4109.6,3.737]
[1759254127113,3.07346763,4109.7,4109.3,0.1216]
[1759254127279,3.07346763,4109.7,4108.5,0.4916313]
[1759254127280,2.43364338,4109.1,4108.9,0.1216]
[1759254127515,2.43364338,4109.1,4109.0,2.524]
[1759254127694,0.2321,4109.1,4109.0,2.524]
[1759254128020,0.1216,4109.5,4109.0,2.524]
[1759254128429,2.43353005,4109.3,4109.1,0.02433622]
[1759254129417,2.78714036,4109.5,4109.1,0.02433622]
[1759254129624,0.2321,4109.8,4109.1,0.02433622]
[1759254129802,2.43337066,4109.6,4109.3,0.1216]
[1759254130197,2.43337066,4109.6,4109.4,0.02433445]
[1759254130403,2.43337066,4109.6,4109.5,2.837]
[1759254130609,2.66547066,4109.6,4109.5,2.837]
[1759254131321,2.66547066,4109.6,4109.5,3.737]
[1759254133244,3.07357066,4109.6,4109.5,0.9]
[1759254133400,3.19517066,4109.6,4109.5,3.737]
[1759254133937,2.78707066,4109.6,4109.5,3.737]
[1759254134136,2.55497066,4109.6,4109.5,3.737]
[1759254134323,2.80247066,4109.6,4109.5,3.737]
[1759254135236,0.1216,4109.6,4109.5,3.737]
[1759254135463,2.55492684,4109.6,4109.5,3.737]
[1759254135639,2.80242684,4109.6,4109.5,3.737]
[1759254136154,0.001,4110.2,4109.5,3.737]
[1759254136457,2.43316678,4109.9,4109.5,4.3049]
[1759254136613,0.1216,4110.0,4109.6,0.02433326]
[1759254136817,2.55470167,4110.0,4109.6,0.02433326]
[1759254137028,0.1216,4110.0,4109.6,0.02433326]
[1759254137415,2.43325517,4109.8,4109.5,4.3049]
[1759254137752,2.43332684,4109.6,4109.5,3.8586]
[1759254137958,2.67942684,4109.6,4109.5,3.8586]
[1759254138135,2.67942684,4109.6,4109.5,3.737]
[1759254138769,0.1216,4109.7,4109.5,3.737]
[1759254138945,2.4332253,4109.8,4109.5,3.737]
[1759254139241,2.43328378,4109.7,4109.5,3.737]
[1759254139617,2.43322409,4109.8,4109.6,2.837]
[1759254140118,0.1216,4110.0,4109.6,2.837]
[1759254140318,2.43314922,4109.9,4109.6,2.837]
[1759254140519,2.43326763,4109.7,4109.6,2.837]
[1759254140747,2.67936763,4109.7,4109.6,2.837]
[1759254141049,3.08746763,4109.7,4109.6,2.837]
[1759254141220,2.67936763,4109.7,4109.6,2.837]
[1759254142035,3.08746763,4109.7,4109.6,2.837]
[1759254142349,2.55486763,4109.7,4109.6,2.837]
[1759254142762,2.80096763,4109.7,4109.6,2.837]
[1759254142937,3.20906763,4109.7,4109.6,2.837]
[1759254143334,3.20906763,4109.7,4109.5,3.737]
[1759254143335,2.43332684,4109.6,4109.5,3.737]
[1759254143661,3.08752684,4109.6,4109.5,2.837]
[1759254144465,2.67942684,4109.6,4109.5,2.837]
[1759254145063,3.08752684,4109.6,4109.5,2.837]
[1759254145446,2.67942684,4109.6,4109.5,2.837]
[1759254147280,2.43332684,4109.6,4109.5,2.837]
[1759254148774,0.001,4109.7,4109.5,3.5539]
[1759254149071,2.43332684,4109.6,4109.5,3.3075]
[1759254150068,2.43332684,4109.6,4109.5,2.837]
[1759254152746,2.67942684,4109.6,4109.5,2.837]
[1759254153969,2.43332684,4109.6,4109.5,2.837]
[1759254154173,2.43429764,4109.7,4109.5,2.837]
[1759254154781,2.43332684,4109.6,4109.5,3.3075]
[1759254154947,0.001,4109.7,4109.5,3.3075]
[1759254155150,0.001,4109.7,4109.6,0.49483326]
[1759254155346,0.001,4109.7,4109.6,0.74123326]
[1759254156548,0.001,4109.7,4109.6,1.09905659]
[1759254156994,0.001,4109.7,4109.6,1.07472333]
[1759254157149,0.001,4109.7,4109.6,1.09905659]
[1759254157985,0.001,4109.7,4109.6,0.85265659]
[1759254158187,0.001,4109.7,4109.6,1.22065659]
[1759254158552,0.001,4109.7,4109.6,3.65398343]
[1759254158772,0.001,4109.7,4109.6,5.34598343]
[1759254158976,0.001,4109.7,4109.6,5.32165017]
[1759254159981,0.001,4109.7,4109.6,2.88832333]
[1759254161368,0.001,4109.7,4109.6,5.32165017]
[1759254161687,0.001,4109.7,4109.6,2.88832333]
[1759254162057,0.001,4109.7,4109.6,5.32165017]
[1759254165177,0.001,4109.7,4109.6,7.60005017]
[1759254165486,0.001,4109.7,4109.6,7.72165017]
[1759254166292,0.001,4109.7,4109.6,13.34947962]
[1759254171366,0.001,4109.7,4109.6,6.68325017]
[1759254171576,0.2303,4109.7,4109.6,0.9]
[1759254171779,0.2303,4109.7,4109.6,3.735]
[1759254172178,0.001,4109.7,4109.6,6.96032684]
[1759254172466,0.001,4109.7,4109.6,1.692]
[1759254172687,0.001,4109.7,4109.6,6.96032684]
[1759254172908,0.001,4109.7,4109.6,7.97010356]
[1759254173423,0.001,4109.7,4109.6,14.30193301]
[1759254173595,0.001,4109.7,4109.6,16.70193301]
[1759254176392,0.001,4109.7,4109.6,15.99793301]
[1759254176715,0.001,4109.7,4109.6,16.46533301]
[1759254176906,0.001,4109.7,4109.6,10.37010356]
[1759254177435,0.2303,4109.7,4109.6,4.30977672]
[1759254177711,0.2303,4109.7,4109.6,3.734]
[1759254178210,0.2303,4109.7,4109.6,4.526]
[1759254179109,0.2303,4109.7,4109.6,6.95932684]
[1759254179313,0.001,4109.7,4109.6,6.95932684]
[1759254180726,0.001,4109.7,4109.6,15.69115629]
[1759254180912,0.001,4109.7,4109.6,17.50361206]
[1759254181300,0.001,4109.7,4109.6,14.36628522]
[1759254181514,0.001,4109.7,4109.6,8.86005577]
[1759254181835,0.2303,4109.7,4109.6,8.86005577]
[1759254182034,0.2303,4109.7,4109.6,11.29338261]
[1759254182193,0.2303,4109.7,4109.6,0.9]
[1759254182390,0.2303,4109.7,4109.6,3.734]
[1759254182391,3.07166763,4109.7,4109.6,3.734]
[1759254183206,0.6384,4109.7,4109.6,3.734]
[1759254183602,3.07166763,4109.7,4109.6,3.734]
[1759254183827,0.6384,4109.7,4109.6,3.734]
[1759254183999,2.66356763,4109.7,4109.6,3.734]
[1759254184213,0.2303,4109.7,4109.6,3.734]
[1759254185522,0.001,4109.7,4109.6,3.734]
[1759254186334,0.2303,4109.7,4109.6,3.734]
[1759254187323,3.07166763,4109.7,4109.6,3.733]
[1759254187531,3.07166763,4109.7,4109.6,0.9]
[1759254187736,3.07166763,4109.7,4109.6,3.733]
[1759254189135,3.07166763,4109.7,4109.6,0.9]
[1759254189635,3.07166763,4109.7,4109.3,1.513]
[1759254189636,2.43338605,4109.5,4109.3,1.513]
[1759254189837,2.43376959,4108.9,4108.3,0.794]
[1759254190042,2.43380599,4108.8,4108.4,2.34681151]
[1759254190342,2.43387236,4108.7,4108.4,2.024]
[1759254190836,2.43397833,4108.5,4108.4,2.024]
[1759254191240,2.67687833,4108.5,4108.4,2.024]
[1759254191545,2.43403758,4108.4,4108.3,0.002]
[1759254191707,2.43403758,4108.4,4108.3,2.835]
[1759254192035,2.67693758,4108.4,4108.3,2.835]
[1759254192237,3.08503758,4108.4,4108.3,2.835]
[1759254192830,2.67693758,4108.4,4108.3,2.835]
[1759254193354,0.1216,4108.7,4108.3,2.835]
[1759254193553,0.1216,4108.7,4108.4,0.6804]
[1759254193758,2.43387938,4108.7,4108.4,0.2352]
[1759254193967,0.4081,4109.3,4108.5,0.1216]
[1759254193968,2.43391909,4108.6,4108.5,0.1216]
[1759254194182,2.67681909,4108.6,4108.5,0.1216]
[1759254194775,2.67681909,4108.6,4108.5,1.0216]
[1759254195468,8.71274854,4108.6,4108.5,3.8546]
[1759254195630,8.71274854,4108.6,4108.5,3.733]
[1759254196253,8.71274854,4108.6,4108.5,0.9]
[1759254199143,2.43391909,4108.6,4108.5,0.9]
[1759254199334,2.55551909,4108.6,4108.5,0.9]
[1759254199853,2.79711909,4108.6,4108.5,0.9]
[1759254201157,3.20521909,4108.6,4108.5,0.9]
[1759254201465,3.20521909,4108.6,4108.5,3.733]
[1759254201641,3.20521909,4108.6,4108.5,0.9]
[1759254201849,2.79711909,4108.6,4108.5,0.9]
[1759254202052,2.79711909,4108.6,4108.5,3.733]
[1759254202363,3.20521909,4108.6,4108.5,3.733]
[1759254202585,2.43397833,4108.5,4108.3,0.002]
[1759254202735,8.06186703,4108.4,4108.3,0.002]
[1759254202937,11.11156703,4108.4,4108.3,0.002]
[1759254203143,5.48373758,4108.4,4108.3,0.002]
[1759254203345,11.11156703,4108.4,4108.3,0.002]
[1759254203956,5.07563758,4108.4,4108.3,0.002]
[1759254204155,2.67563758,4108.4,4108.3,0.002]
[1759254204471,2.43400642,4108.5,4108.3,0.002]
[1759254204670,2.43399967,4108.5,4108.4,2.833]
[1759254205743,2.67559967,4108.5,4108.4,2.833]
[1759254206539,0.2416,4108.5,4108.4,2.833]
[1759254206746,2.67557833,4108.5,4108.4,2.833]
[1759254209389,8.06169043,4108.7,4108.4,2.833]
[1759254209686,2.43397833,4108.5,4108.4,2.833]
[1759254210174,0.2416,4108.6,4108.4,2.833]
[1759254210377,2.43397833,4108.5,4108.4,2.833]
[1759254210564,2.67557833,4108.5,4108.4,2.833]
[1759254211692,2.67557833,4108.5,4108.3,0.002]
[1759254211693,4.83403758,4108.4,4108.3,0.002]
[1759254211999,10.70346703,4108.4,4108.3,0.002]
[1759254212296,11.11156703,4108.4,4108.3,0.002]
[1759254212657,11.23316703,4108.4,4108.3,0.002]
[1759254213057,10.82506703,4108.4,4108.3,0.002]
[1759254213295,11.23316703,4108.4,4108.3,0.002]
[1759254213952,10.82506703,4108.4,4108.3,0.002]
[1759254215296,11.23316703,4108.4,4108.3,0.002]
[1759254216984,10.82506703,4108.4,4108.3,0.002]
[1759254217567,11.6361258,4108.4,4108.3,0.002]
[1759254217795,4.83414051,4108.3,4107.8,1e-08]
[1759254217995,5.62782945,4107.9,4107.8,1e-08]
[1759254218196,13.29416329,4107.9,4107.8,1e-08]
[1759254218398,20.09625151,4107.9,4107.8,1e-08]
[1759254218611,14.46842206,4107.9,4107.8,1e-08]
[1759254220192,14.06032206,4107.9,4107.8,1e-08]
[1759254220637,14.46842206,4107.9,4107.8,1e-08]
[1759254221094,14.06032206,4107.9,4107.8,1e-08]
[1759254221718,14.46842206,4107.9,4107.8,1e-08]
[1759254222640,20.96829392,4107.9,4107.8,1e-08]
[1759254222824,20.96829392,4107.9,4107.5,0.002]
[1759254222825,16.09017053,4107.6,4107.5,0.002]
[1759254223129,2.43498587,4106.8,4106.7,0.002]
[1759254223429,13.29481532,4106.8,4106.7,0.002]
[1759254223624,14.47697409,4106.8,4106.7,0.002]
[1759254224026,14.06887409,4106.8,4106.7,0.002]
[1759254224215,13.54431532,4106.8,4106.7,0.002]
[1759254224727,7.66698587,4106.8,4106.7,0.002]
[1759254224902,4.83498587,4106.8,4106.7,0.4762]
[1759254225110,4.83498587,4106.8,4106.7,0.002]
[1759254225513,5.08448587,4106.8,4106.7,0.002]
[1759254225901,4.83498587,4106.8,4106.7,0.002]
[1759254226532,5.08448587,4106.8,4106.7,0.002]
[1759254227604,5.20608587,4106.8,4106.7,0.002]
[1759254228498,8.44618587,4106.8,4106.7,0.002]
[1759254228733,2.43528237,4106.3,4106.1,0.002]
[1759254229032,8.96337662,4106.3,4106.1,0.002]
[1759254229337,9.21287662,4106.3,4106.1,0.002]
[1759254229835,9.33646656,4106.3,4106.1,0.002]
[1759254230338,9.21287662,4106.3,4106.1,0.002]
[1759254230499,9.33463371,4106.3,4106.1,0.002]
[1759254230835,9.21287662,4106.3,4106.1,0.002]
[1759254232509,11.77147662,4106.3,4106.1,0.002]
[1759254232722,5.08478237,4106.3,4106.1,0.002]
[1759254232924,5.49288237,4106.3,4106.1,0.002]
[1759254233142,8.42244822,4106.3,4106.1,0.002]
[1759254233437,8.42244822,4106.3,4105.7,0.002]
[1759254233438,2.43551961,4105.9,4105.7,0.002]
[1759254233641,7.66751961,4105.9,4105.7,0.002]
[1759254233841,7.91701961,4105.9,4105.7,0.002]
[1759254234040,5.08501961,4105.9,4105.7,0.002]
[1759254234242,4.83551961,4105.9,4105.7,0.002]
[1759254235833,4.83551961,4105.9,4105.8,0.4762]
[1759254236016,4.83551961,4105.9,4105.8,0.706]
[1759254236343,2.43551961,4105.9,4105.8,0.706]
[1759254237242,2.43551961,4105.9,4105.8,0.002]
[1759254237547,2.43551961,4105.9,4105.8,0.4762]
[1759254238844,2.55711961,4105.9,4105.8,0.002]
[1759254240052,2.80661961,4105.9,4105.8,0.002]
[1759254240554,2.55711961,4105.9,4105.8,0.002]
[1759254241850,8.03861961,4105.9,4105.8,0.002]
[1759254242038,8.44671961,4105.9,4105.8,0.002]
[1759254243050,8.03861961,4105.9,4105.8,0.002]
[1759254243213,8.44671961,4105.9,4105.8,0.002]
[1759254243421,8.44671961,4105.9,4104.8,0.002]
[1759254243422,2.43581624,4105.4,4104.8,0.002]
[1759254243719,4.83587557,4105.3,4104.8,0.002]
[1759254243922,4.95771293,4104.9,4104.8,0.002]
[1759254244446,5.20721293,4104.9,4104.8,0.002]
[1759254244648,5.61531293,4104.9,4104.8,0.002]
[1759254245632,6.13847125,4104.9,4104.8,0.002]
[1759254246151,6.93047125,4104.9,4104.8,0.002]
[1759254248655,5.48087125,4104.9,4104.8,0.002]
[1759254248840,4.95771293,4104.9,4104.8,0.4762]
[1759254249043,4.95771293,4104.9,4104.8,0.002]
[1759254249443,5.20721293,4104.9,4104.8,0.002]
[1759254250252,4.95771293,4104.9,4104.8,0.002]
[1759254252050,5.19631293,4104.9,4104.8,0.002]
[1759254252262,5.60441293,4104.9,4104.8,0.002]
[1759254252422,6.91981768,4104.9,4104.8,0.002]
[1759254252826,6.51171768,4104.9,4104.8,0.002]
[1759254253035,6.51171768,4104.9,4103.9,0.002]
[1759254253036,2.43664717,4104.0,4103.9,0.002]
[1759254253236,7.66764717,4104.0,4103.9,0.002]
[1759254253461,8.42960426,4104.0,4103.9,0.002]
[1759254253657,8.86430426,4104.0,4103.9,0.002]
[1759254254028,9.27239119,4104.0,4103.9,0.002]
[1759254255363,10.06439119,4104.0,4103.9,0.002]
[1759254257052,2.4375975,4102.4,4102.3,0.002]
[1759254257252,7.6685975,4102.4,4102.3,0.002]
[1759254259145,7.6685975,4102.4,4102.3,0.4549]
[1759254259541,2.4,4102.4,4102.3,0.6912]
[1759254259746,4.8375975,4102.4,4102.3,0.6912]
[1759254260148,2.4,4102.4,4102.3,0.6912]
[1759254260649,2.43755408,4102.5,4102.3,0.6912]
[1759254260973,2.43711417,4103.3,4102.4,0.6892]
[1759254260974,0.73237628,4103.1,4102.4,0.6892]
[1759254261173,2.4374294,4102.7,4102.4,0.2363]
[1759254261378,2.43747867,4102.6,4102.5,0.6892]
[1759254263180,2.55907867,4102.6,4102.5,0.6892]
[1759254263484,2.4375975,4102.4,4102.3,0.002]
[1759254263891,2.4375975,4102.4,4102.3,0.2383]
[1759254264089,2.4375975,4102.4,4102.3,0.6912]
[1759254264390,0.1216,4102.6,4102.3,0.6912]
[1759254264594,0.1216,4102.6,4102.4,0.6892]
[1759254264991,0.1216,4102.6,4102.5,0.6892]
[1759254265292,2.55907867,4102.6,4102.5,0.6892]
[1759254266015,4.83753808,4102.5,4102.3,0.002]
[1759254266167,7.6685975,4102.4,4102.3,0.002]
[1759254266677,7.9059975,4102.4,4102.3,0.002]
[1759254267011,2.43777577,4102.1,4102.0,6.90080058]
[1759254267164,7.90617577,4102.1,4102.0,1e-08]
[1759254267364,8.02777577,4102.1,4102.0,1e-08]
[1759254268602,8.02777577,4102.1,4101.7,0.002]
[1759254268603,2.43795406,4101.8,4101.7,1e-08]
[1759254268802,5.39055406,4101.8,4101.7,1e-08]
[1759254268990,6.03605406,4101.8,4101.7,1e-08]
[1759254269509,8.02795406,4101.8,4101.7,1e-08]
[1759254269677,8.43605406,4101.8,4101.7,1e-08]
[1759254272014,8.02795406,4101.8,4101.7,1e-08]
[1759254274108,7.79155406,4101.8,4101.7,0.45290001]
[1759254274307,7.79155406,4101.8,4101.7,1e-08]
[1759254275409,8.02895406,4101.8,4101.7,1e-08]
[1759254276107,7.79155406,4101.8,4101.7,1e-08]
[1759254276514,7.8892295,4101.8,4101.7,1e-08]
[1759254277484,8.1266295,4101.8,4101.7,1e-08]
[1759254277715,7.8892295,4101.8,4101.7,1e-08]
[1759254277927,8.1266295,4101.8,4101.7,1e-08]
[1759254278139,2.43813239,4101.5,4101.4,0.002]
[1759254278343,2.43813239,4101.5,4099.8,0.4529]
[1759254278344,0.792,4101.2,4099.8,0.4529]
[1759254278501,2.43827912,4101.3,4099.8,0.4529]
[1759254278502,2.43908388,4099.9,4099.8,0.4529]
[1759254280320,2.43908388,4099.9,4099.8,0.6892]
[1759254280522,2.4,4100.1,4099.8,0.6892]
[1759254280839,2.4,4100.1,4099.9,0.6892]
[1759254280840,2.43902439,4100.0,4099.9,0.6892]
[1759254281002,2.43909531,4099.9,4099.2,1.379]
[1759254281199,2.43897837,4100.1,4099.3,0.1379]
[1759254281406,2.43915079,4099.8,4099.3,0.1379]
[1759254281634,2.43910134,4099.9,4099.4,0.6921]
[1759254281944,2.43899616,4100.1,4099.5,0.6921]
[1759254281945,2.43901856,4100.1,4099.5,0.6921]
[1759254282439,2.43896118,4100.2,4099.7,0.6921]
[1759254282740,2.43904407,4100.0,4099.7,0.2484]
[1759254282923,2.43904407,4100.0,4099.8,0.4437]
[1759254282924,2.43908388,4099.9,4099.8,0.4437]
[1759254283303,2.43884593,4100.3,4099.8,0.6921]
[1759254283529,2.4,4100.4,4099.8,0.6921]
[1759254283730,4.83878787,4100.4,4099.9,0.6921]
[1759254284030,2.43890541,4100.2,4100.0,0.6921]
[1759254284202,4.83895186,4100.2,4100.1,0.4437]
[1759254284406,2.43895186,4100.2,4100.1,0.4437]
[1759254285914,0.2353,4101.2,4100.1,0.6921]
[1759254286237,0.4437,4101.1,4100.2,0.71648905]
[1759254286413,0.4437,4101.1,4100.3,1.99125109]
[1759254286614,2.4,4101.8,4100.4,3.5231]
[1759254286831,0.96786763,4101.8,4100.5,0.6921]
[1759254287017,2.831,4101.7,4100.4,2.831]
[1759254287338,2.831,4101.7,4100.5,0.4437]
[1759254287339,2.6353,4101.6,4100.5,0.4437]
[1759254287537,2.43866751,4100.6,4100.5,0.4437]
[1759254288108,0.1216,4100.6,4100.5,0.6921]
[1759254288638,0.1216,4100.9,4100.5,0.6921]
[1759254288945,0.1216,4100.9,4100.3,2.56043088]
[1759254288946,0.1216,4100.9,4100.6,0.6921]
[1759254289310,0.1216,4100.9,4100.7,0.6921]
[1759254289522,0.1043,4100.9,4100.8,0.6921]
[1759254290029,0.1043,4100.9,4100.8,0.4437]
[1759254290520,0.1043,4100.9,4100.8,0.6921]
[1759254290720,2.54278911,4100.9,4100.8,0.6921]
[1759254291019,0.1043,4100.9,4100.1,0.002]
[1759254291222,2.43872683,4100.6,4100.1,0.002]
[1759254291549,3.13271614,4101.1,4100.2,0.4437]
[1759254291714,2.4,4101.0,4100.3,0.2484]
[1759254291916,3.17111821,4101.1,4100.4,3.2747]
[1759254292145,2.67426419,4101.8,4100.5,1.04441]
[1759254292146,0.001,4101.8,4100.5,1.04441]
[1759254292328,2.43825549,4101.3,4100.5,0.35231]
[1759254292539,2.43824671,4101.4,4100.6,0.6921]
[1759254292712,2.43828001,4101.3,4100.7,0.6921]
[1759254292940,2.43831282,4101.2,4100.8,0.2484]
[1759254293472,2.43807294,4101.6,4100.9,0.6921]
[1759254293640,2.43831995,4101.2,4100.9,0.6921]
[1759254293838,2.43831995,4101.2,4101.0,0.6921]
[1759254294035,0.52440748,4101.8,4101.1,0.6921]
[1759254294371,0.001,4101.8,4101.2,3.13036688]
[1759254294565,0.001,4101.8,4101.3,3.13030556]
[1759254294766,0.001,4101.8,4101.4,2.43817755]
[1759254294971,0.001,4101.8,4101.4,3.13028823]
[1759254295267,0.001,4101.8,4101.5,0.6921]
[1759254295474,0.001,4101.8,4101.6,2.831]
[1759254295641,2.43805516,4101.7,4101.2,0.2484]
[1759254295843,2.43805516,4101.7,4101.3,3.2747]
[1759254296156,0.001,4101.8,4101.3,0.4437]
[1759254296357,2.43811603,4101.6,4101.4,0.4437]
[1759254296542,0.001,4101.8,4101.4,0.4437]
[1759254296543,2.43895956,4101.8,4101.4,0.4437]
[1759254296743,2.43895956,4101.8,4101.3,2.831]
[1759254296744,0.001,4101.8,4101.3,2.831]
[1759254296945,2.43819183,4101.4,4101.3,2.831]
[1759254297173,2.43841148,4101.1,4100.8,2.831]
[1759254297374,2.43825128,4101.3,4100.8,3.2747]
[1759254297547,2.43844302,4101.0,4100.8,3.2747]
[1759254297981,2.43838033,4101.1,4100.8,3.2747]
[1759254298175,2.67349575,4101.4,4100.8,3.2737]
[1759254298476,2.43841895,4101.1,4100.8,3.2737]
[1759254298677,2.43843377,4101.0,4100.9,0.6921]
[1759254299057,2.43826468,4101.3,4100.9,0.6921]
[1759254299274,2.6733135,4101.7,4100.9,0.6921]
[1759254299275,0.2353,4101.7,4100.9,0.2484]
[1759254299456,2.43816717,4101.5,4101.0,0.4437]
[1759254299652,2.43837019,4101.1,4101.0,0.4437]
[1759254299977,0.2353,4101.4,4100.8,2.83]
[1759254300176,2.43887905,4100.3,4100.1,0.002]
[1759254300376,2.43837019,4101.1,4100.1,0.002]
[1759254300554,2.43890541,4100.2,4100.1,0.002]
[1759254301149,2.56050541,4100.2,4100.1,0.002]
[1759254301344,2.79580541,4100.2,4100.1,0.002]
[1759254301945,2.56050541,4100.2,4100.1,0.002]
[1759254302145,0.1216,4100.2,4100.1,0.2504]
[1759254302345,2.56050541,4100.2,4100.1,0.6941]
[1759254302753,2.56050541,4100.2,4100.1,0.002]
[1759254303383,2.79580541,4100.2,4100.1,0.002]
[1759254304104,2.56050541,4100.2,4100.1,0.002]
[1759254306989,5.60390541,4100.2,4100.1,0.002]
[1759254307356,6.86053419,4100.2,4100.1,0.002]
[1759254307681,6.45243419,4100.2,4100.1,0.002]
[1759254307892,6.45227823,4100.2,4100.1,0.002]
[1759254308097,6.86037823,4100.2,4100.1,0.002]
[1759254308331,6.12749562,4100.2,4100.1,0.002]
[1759254308471,6.22520542,4100.2,4100.1,0.002]
[1759254312695,9.05520542,4100.2,4100.1,0.002]
[1759254314012,12.07821521,4100.2,4100.1,0.002]
[1759254314210,15.13381521,4100.2,4100.1,0.002]
[1759254314500,16.06457665,4100.2,4100.1,0.002]
[1759254315296,15.54191521,4100.2,4100.1,0.002]
[1759254315797,14.90821521,4100.2,4100.1,0.002]
[1759254316169,15.13381521,4100.2,4100.1,0.002]
[1759254316369,14.90821521,4100.2,4100.1,0.002]
[1759254316566,12.07821521,4100.2,4100.1,0.002]
[1759254316770,11.98050541,4100.2,4100.1,0.6865]
[1759254317000,9.58050541,4100.2,4100.1,0.6865]
[1759254317590,9.58050541,4100.2,4100.1,0.002]
[1759254317793,12.22590541,4100.2,4100.1,0.002]
[1759254317993,12.74868743,4100.2,4100.1,0.002]
[1759254318308,13.15678743,4100.2,4100.1,0.002]
[1759254318603,12.74868743,4100.2,4100.1,0.002]
[1759254319004,13.15678743,4100.2,4100.1,0.002]
[1759254319502,12.74868743,4100.2,4100.1,0.002]
[1759254320306,15.33328743,4100.2,4100.1,0.002]
[1759254320690,9.58050541,4100.2,4100.1,0.7064]
[1759254320889,11.98050541,4100.2,4100.1,0.7064]
[1759254321190,0.1216,4100.2,4100.1,0.7064]